[Event "SS Manhem Chess Week 2019 Goteborg Open"]
[Site "Molnlycke kulturhus, Biblioteksgatan 2, Molnlycke, Sweden"]
[Date "2019.08.17"]
[Round "6.7"]
[White "Rydstrom, Tom"]
[Black "Arnelind, Mikael"]
[Result "1-0"]
[TimeControl "15 minutes + 5 seconds per move from move one (Round 1 - 4) / 90 minutes + 30 seconds per move from move one (Round 5 - 8)"]
[WhiteTitle "FM"]
[WhiteFideId "1714830"]
[BlackFideId "1704290"]
[WhiteElo "2314"]
[BlackElo "2187"]

1. e4 {[%clk 01:21:10]} {[%emt 00:09:49]} e6 {[%clk 01:30:55]} {[%emt
00:00:05]} 2. d4 {[%clk 01:21:22]} {[%emt 00:00:19]} d5 {[%clk 01:31:20]}
{[%emt 00:00:05]} 3. Nc3 {[%clk 01:20:59]} {[%emt 00:00:53]} Bb4 {[%clk
01:31:37]} {[%emt 00:00:12]} 4. e5 {[%clk 01:21:01]} {[%emt 00:00:29]} c5
{[%clk 01:31:58]} {[%emt 00:00:09]} 5. a3 {[%clk 01:20:49]} {[%emt 00:00:42]}
Bxc3+ {[%clk 01:32:20]} {[%emt 00:00:07]} 6. bxc3 {[%clk 01:21:14]} {[%emt
00:00:05]} Qc7 {[%clk 01:32:43]} {[%emt 00:00:07]} 7. Qg4 {[%clk 01:20:57]}
{[%emt 00:00:47]} f5 {[%clk 01:32:55]} {[%emt 00:00:18]} 8. Qg3 {[%clk
01:21:02]} {[%emt 00:00:26]} cxd4 {[%clk 01:33:12]} {[%emt 00:00:13]} 9. cxd4
{[%clk 01:21:15]} {[%emt 00:00:18]} Ne7 {[%clk 01:33:30]} {[%emt 00:00:12]} 10.
Ne2 {[%clk 01:20:46]} {[%emt 00:00:59]} O-O {[%clk 01:33:10]} {[%emt 00:00:49]}
11. c3 {[%clk 01:16:47]} {[%emt 00:04:30]} b6 {[%clk 01:31:45]} {[%emt
00:01:56]} 12. Nf4 {[%clk 01:17:04]} {[%emt 00:00:12]} Qd7 {[%clk 01:31:16]}
{[%emt 00:00:58]} 13. a4 {[%clk 01:13:26]} {[%emt 00:04:08]} Ba6 {[%clk
01:28:00]} {[%emt 00:03:46]} 14. Bxa6 {[%clk 01:13:52]} {[%emt 00:00:05]} Nxa6
{[%clk 01:28:28]} {[%emt 00:00:02]} 15. Ba3 {[%clk 01:13:49]} {[%emt 00:00:34]}
Rf7 {[%clk 01:25:24]} {[%emt 00:03:33]} 16. O-O {[%clk 01:14:14]} {[%emt
00:00:05]} Rc8 {[%clk 01:23:35]} {[%emt 00:02:19]} 17. h4 {[%clk 01:06:07]}
{[%emt 00:08:36]} Rc4 {[%clk 01:18:42]} {[%emt 00:05:23]} 18. a5 {[%clk
01:04:45]} {[%emt 00:01:53]} b5 {[%clk 01:15:11]} {[%emt 00:04:01]} 19. h5
{[%clk 01:02:54]} {[%emt 00:02:21]} h6 {[%clk 01:12:53]} {[%emt 00:02:48]} 20.
Rab1 {[%clk 00:59:27]} {[%emt 00:03:59]} Ra4 {[%clk 00:57:48]} {[%emt
00:15:34]} 21. Bb4 {[%clk 00:55:40]} {[%emt 00:04:17]} Nc6 {[%clk 00:51:08]}
{[%emt 00:07:10]} 22. Bd6 {[%clk 00:51:24]} {[%emt 00:04:44]} Nd8 {[%clk
00:43:36]} {[%emt 00:08:03]} 23. Ra1 {[%clk 00:50:39]} {[%emt 00:01:16]} Rc4
{[%clk 00:41:13]} {[%emt 00:02:53]} 24. Rfb1 {[%clk 00:48:50]} {[%emt
00:02:19]} Nb7 {[%clk 00:39:05]} {[%emt 00:02:38]} 25. Ba3 {[%clk 00:47:40]}
{[%emt 00:01:40]} Qc6 {[%clk 00:38:08]} {[%emt 00:01:27]} 26. Qg6 {[%clk
00:47:13]} {[%emt 00:00:57]} Nc7 {[%clk 00:34:06]} {[%emt 00:04:32]} 27. a6
{[%clk 00:47:30]} {[%emt 00:00:14]} Nd8 {[%clk 00:31:24]} {[%emt 00:03:11]} 28.
Bc5 {[%clk 00:44:00]} {[%emt 00:03:59]} Rxc5 {[%clk 00:28:46]} {[%emt
00:03:09]} 29. dxc5 {[%clk 00:44:24]} {[%emt 00:00:06]} Qxc5 {[%clk 00:28:55]}
{[%emt 00:00:22]} 30. Qg3 {[%clk 00:41:25]} {[%emt 00:03:28]} Nc6 {[%clk
00:28:13]} {[%emt 00:01:12]} 31. Ne2 {[%clk 00:40:06]} {[%emt 00:01:49]} Qc4
{[%clk 00:27:30]} {[%emt 00:01:14]} 32. Nf4 {[%clk 00:27:19]} {[%emt 00:13:17]}
Rd7 {[%clk 00:21:08]} {[%emt 00:06:51]} 33. Qe3 {[%clk 00:25:44]} {[%emt
00:02:05]} Qe4 {[%clk 00:17:54]} {[%emt 00:03:44]} 34. Qc5 {[%clk 00:21:40]}
{[%emt 00:04:34]} Qc4 {[%clk 00:09:12]} {[%emt 00:09:13]} 35. Qxc4 {[%clk
00:20:27]} {[%emt 00:01:43]} dxc4 {[%clk 00:09:34]} {[%emt 00:00:08]} 36. Rd1
{[%clk 00:20:43]} {[%emt 00:00:14]} Nd5 {[%clk 00:06:13]} {[%emt 00:03:51]} 37.
Nxe6 {[%clk 00:18:27]} {[%emt 00:02:46]} Nxe5 {[%clk 00:06:22]} {[%emt
00:00:21]} 38. Nc5 {[%clk 00:18:06]} {[%emt 00:00:51]} Rd6 {[%clk 00:05:54]}
{[%emt 00:00:58]} 39. Ra5 {[%clk 00:16:27]} {[%emt 00:02:10]} Nd3 {[%clk
00:04:56]} {[%emt 00:01:28]} 40. Rxb5 {[%clk 00:13:55]} {[%emt 00:03:02]} Nxc3
{[%clk 00:05:22]} 41. Rb8+ {[%clk 00:14:16]} {[%emt 00:00:13]} Kf7 {[%clk
00:04:55]} 42. Rd2 {[%emt 00:05:09]} Ne4 {[%clk 00:03:27]} {[%emt 00:00:19]} 43.
Nxe4 {[%clk 00:11:42]} {[%emt 00:01:01]} fxe4 {[%clk 00:03:55]} {[%emt
00:00:02]} 44. Rb7+ {[%clk 00:09:42]} {[%emt 00:02:30]} Kf6 {[%clk 00:02:55]}
{[%emt 00:01:30]} 45. Rxa7 {[%clk 00:10:08]} {[%emt 00:00:04]} Rc6 {[%clk
00:03:11]} {[%emt 00:00:14]} 46. Ra8 {[%clk 00:10:22]} {[%emt 00:00:17]} Kg5
{[%clk 00:02:40]} {[%emt 00:01:01]} 47. a7 {[%clk 00:10:38]} {[%emt 00:00:14]}
Ra6 {[%clk 00:03:03]} {[%emt 00:00:06]} 48. Rc2 {[%clk 00:09:58]} {[%emt
00:01:10]} Ra1+ {[%clk 00:03:23]} {[%emt 00:00:11]} 49. Kh2 {[%clk 00:10:26]}
{[%emt 00:00:02]} c3 {[%clk 00:03:33]} {[%emt 00:00:21]} 50. Rxc3 {[%clk
00:10:18]} {[%emt 00:00:38]} Nxf2 {[%clk 00:03:51]} {[%emt 00:00:11]} 51. Rf8
{[%clk 00:08:53]} {[%emt 00:01:55]} e3 {[%clk 00:00:39]} {[%emt 00:03:42]} 52.
a8=Q {[%clk 00:08:45]} {[%emt 00:00:38]} 1-0

[Event "SS Manhem Chess Week 2019 Goteborg Open"]
[Site "Molnlycke kulturhus, Biblioteksgatan 2, Molnlycke, Sweden"]
[Date "2019.08.17"]
[Round "6.8"]
[White "Pham, Bich Ngoc"]
[Black "Petersson, Baldur Teodor"]
[Result "1-0"]
[TimeControl "15 minutes + 5 seconds per move from move one (Round 1 - 4) / 90 minutes + 30 seconds per move from move one (Round 5 - 8)"]
[WhiteTitle "WIM"]
[BlackTitle "CM"]
[WhiteFideId "12401285"]
[BlackFideId "2309157"]
[WhiteElo "2176"]
[BlackElo "2255"]

1. f4 {[%clk 01:28:12]} {[%emt 00:02:47]} e5 {[%clk 01:30:45]} {[%emt
00:00:16]} 2. d3 {[%clk 01:27:49]} {[%emt 00:00:53]} exf4 {[%clk 01:23:42]}
{[%emt 00:07:32]} 3. Bxf4 {[%clk 01:27:46]} {[%emt 00:00:33]} d5 {[%clk
01:23:54]} {[%emt 00:00:18]} 4. g3 {[%clk 01:26:34]} {[%emt 00:01:42]} g5
{[%clk 01:19:42]} {[%emt 00:04:43]} 5. Be5 {[%clk 01:22:57]} {[%emt 00:04:06]}
f6 {[%clk 01:15:53]} {[%emt 00:04:19]} 6. Bd4 {[%clk 01:23:02]} {[%emt
00:00:25]} Nc6 {[%clk 01:09:54]} {[%emt 00:06:30]} 7. Bf2 {[%clk 01:23:04]}
{[%emt 00:00:28]} Bf5 {[%clk 01:06:10]} {[%emt 00:04:14]} 8. Bg2 {[%clk
01:20:20]} {[%emt 00:03:14]} Qd7 {[%clk 01:00:04]} {[%emt 00:06:36]} 9. c3
{[%clk 01:18:34]} {[%emt 00:02:16]} h5 {[%clk 00:52:41]} {[%emt 00:07:53]} 10.
Nd2 {[%clk 01:16:26]} {[%emt 00:02:38]} Ne5 {[%clk 00:42:47]} {[%emt 00:10:24]}
11. Qb3 {[%clk 01:13:14]} {[%emt 00:03:42]} c6 {[%clk 00:31:59]} {[%emt
00:11:18]} 12. Ngf3 {[%clk 01:12:24]} {[%emt 00:01:19]} Ng4 {[%clk 00:29:35]}
{[%emt 00:02:54]} 13. Bg1 {[%clk 01:11:45]} {[%emt 00:01:09]} Bd6 {[%clk
00:24:23]} {[%emt 00:05:43]} 14. O-O-O {[%clk 01:11:13]} {[%emt 00:01:02]} Ne7
{[%clk 00:23:43]} {[%emt 00:01:11]} 15. Nd4 {[%clk 01:10:41]} {[%emt 00:01:02]}
Bg6 {[%clk 00:22:20]} {[%emt 00:01:52]} 16. e4 {[%clk 01:09:54]} {[%emt
00:01:17]} Bf7 {[%clk 00:19:05]} {[%emt 00:03:45]} 17. exd5 {[%clk 01:06:44]}
{[%emt 00:03:40]} Nxd5 {[%clk 00:17:40]} {[%emt 00:01:56]} 18. c4 {[%clk
01:06:23]} {[%emt 00:00:52]} Nde3 {[%clk 00:12:59]} {[%emt 00:05:11]} 19. Bxe3
{[%clk 01:00:05]} {[%emt 00:06:48]} Nxe3 {[%clk 00:13:23]} {[%emt 00:00:06]} 20.
Rde1 {[%clk 00:58:05]} {[%emt 00:02:30]} Be5 {[%clk 00:13:31]} {[%emt
00:00:22]} 21. Rxe3 {[%clk 00:56:28]} {[%emt 00:02:07]} Qxd4 {[%clk 00:13:53]}
{[%emt 00:00:08]} 22. Re4 {[%clk 00:56:25]} {[%emt 00:00:32]} Qf2 {[%clk
00:08:16]} {[%emt 00:06:08]} 23. Rf1 {[%clk 00:56:03]} {[%emt 00:00:51]} Qxg2
{[%clk 00:06:09]} {[%emt 00:02:39]} 24. Rxf6 {[%clk 00:55:58]} {[%emt
00:00:35]} O-O {[%clk 00:01:51]} {[%emt 00:04:47]} 25. Rxe5 {[%clk 00:56:12]}
{[%emt 00:00:15]} Kg7 {[%clk 00:02:12]} {[%emt 00:00:09]} 26. Ref5 {[%clk
00:54:44]} {[%emt 00:01:58]} Qg1+ {[%clk 00:01:54]} {[%emt 00:00:48]} 27. Kc2
{[%clk 00:53:58]} {[%emt 00:01:17]} Qd4 {[%clk 00:02:17]} {[%emt 00:00:07]} 28.
Ne4 {[%clk 00:51:22]} {[%emt 00:03:06]} b5 {[%clk 00:02:02]} {[%emt 00:00:46]}
29. Rxg5+ {[%clk 00:42:05]} {[%emt 00:09:46]} Kh7 {[%clk 00:02:31]} 30. Qc3
{[%clk 00:41:41]} {[%emt 00:00:55]} Qxc3+ {[%clk 00:02:39]} {[%emt 00:00:22]}
31. Kxc3 {[%clk 00:42:06]} {[%emt 00:00:06]} bxc4 {[%clk 00:02:18]} {[%emt
00:00:51]} 32. dxc4 {[%clk 00:42:29]} {[%emt 00:00:07]} Bg8 {[%clk 00:01:59]}
{[%emt 00:00:49]} 33. Rxh5+ {[%clk 00:42:44]} {[%emt 00:00:15]} Kg7 {[%clk
00:02:24]} {[%emt 00:00:05]} 34. Rg5+ {[%clk 00:42:58]} {[%emt 00:00:16]} Kh7
{[%clk 00:02:43]} {[%emt 00:00:11]} 35. Rxc6 {[%clk 00:41:53]} {[%emt
00:01:35]} Rf3+ {[%clk 00:03:07]} {[%emt 00:00:05]} 36. Kd4 {[%clk 00:42:17]}
{[%emt 00:00:06]} Rd8+ {[%clk 00:03:25]} {[%emt 00:00:13]} 37. Kc5 {[%clk
00:42:29]} {[%emt 00:00:17]} Rdf8 {[%clk 00:02:53]} {[%emt 00:01:02]} 38. Re5
{[%clk 00:41:40]} {[%emt 00:01:19]} R3f5 {[%clk 00:02:54]} {[%emt 00:00:28]} 39.
Rxf5 {[%clk 00:42:04]} {[%emt 00:00:07]} Rxf5+ {[%clk 00:03:18]} {[%emt
00:00:07]} 40. Kd4 {[%clk 00:42:28]} {[%emt 00:00:05]} 1-0

[Event "SS Manhem Chess Week 2019 Goteborg Open"]
[Site "Molnlycke kulturhus, Biblioteksgatan 2, Molnlycke, Sweden"]
[Date "2019.08.17"]
[Round "6.9"]
[White "Carlsson, Ludvig"]
[Black "Andersson, Lars"]
[Result "1-0"]
[TimeControl "15 minutes + 5 seconds per move from move one (Round 1 - 4) / 90 minutes + 30 seconds per move from move one (Round 5 - 8)"]
[WhiteTitle "CM"]
[WhiteFideId "1727010"]
[BlackFideId "1706772"]
[WhiteElo "2234"]
[BlackElo "2003"]

1. d4 {[%clk 01:30:57]} Nf6 {[%clk 01:29:24]} {[%emt 00:01:37]} 2. c4 {[%clk
01:30:48]} {[%emt 00:00:39]} g6 {[%clk 01:29:48]} {[%emt 00:00:07]} 3. Nc3
{[%clk 01:31:08]} {[%emt 00:00:09]} Bg7 {[%clk 01:30:15]} {[%emt 00:00:04]} 4.
e4 {[%clk 01:31:28]} {[%emt 00:00:10]} d6 {[%clk 01:30:39]} {[%emt 00:00:06]} 5.
Be2 {[%clk 01:31:52]} {[%emt 00:00:05]} O-O {[%clk 01:30:15]} {[%emt 00:00:55]}
6. Nf3 {[%clk 01:31:49]} {[%emt 00:00:33]} e5 {[%clk 01:30:16]} {[%emt
00:00:29]} 7. dxe5 {[%clk 01:31:55]} {[%emt 00:00:24]} dxe5 {[%clk 01:30:38]}
{[%emt 00:00:08]} 8. Qxd8 {[%clk 01:32:19]} {[%emt 00:00:06]} Rxd8 {[%clk
01:31:00]} {[%emt 00:00:08]} 9. Bg5 {[%clk 01:32:44]} {[%emt 00:00:05]} Re8
{[%clk 01:30:50]} {[%emt 00:00:39]} 10. Nd5 {[%clk 01:33:09]} {[%emt 00:00:06]}
Nxd5 {[%clk 01:30:39]} {[%emt 00:00:42]} 11. cxd5 {[%clk 01:33:31]} {[%emt
00:00:08]} c6 {[%clk 01:30:07]} {[%emt 00:01:02]} 12. Bc4 {[%clk 01:33:55]}
{[%emt 00:00:05]} cxd5 {[%clk 01:22:29]} {[%emt 00:08:08]} 13. Bxd5 {[%clk
01:34:18]} {[%emt 00:00:07]} Nd7 {[%clk 01:15:29]} {[%emt 00:07:30]} 14. Nd2
{[%clk 01:34:41]} {[%emt 00:00:07]} Nb6 {[%clk 01:15:24]} {[%emt 00:00:36]} 15.
Bb3 {[%clk 01:35:02]} {[%emt 00:00:08]} Be6 {[%clk 01:06:45]} {[%emt 00:09:10]}
16. Bxe6 {[%clk 01:35:21]} {[%emt 00:00:10]} Rxe6 {[%clk 01:04:57]} {[%emt
00:02:17]} 17. O-O-O {[%clk 01:35:44]} {[%emt 00:00:07]} Rc6+ {[%clk 00:50:04]}
{[%emt 00:15:24]} 18. Kb1 {[%clk 01:36:02]} {[%emt 00:00:11]} Rac8 {[%clk
00:49:24]} {[%emt 00:01:10]} 19. Be3 {[%clk 01:29:35]} {[%emt 00:06:56]} a6
{[%clk 00:47:11]} {[%emt 00:02:44]} 20. f3 {[%clk 01:22:57]} {[%emt 00:07:06]}
Bf8 {[%clk 00:40:46]} {[%emt 00:06:56]} 21. Bxb6 {[%clk 01:22:10]} {[%emt
00:01:17]} Rxb6 {[%clk 00:41:14]} {[%emt 00:00:03]} 22. Nb3 {[%clk 01:22:26]}
{[%emt 00:00:14]} Rbc6 {[%clk 00:33:52]} {[%emt 00:07:52]} 23. Rd5 {[%clk
01:14:39]} {[%emt 00:08:17]} Bg7 {[%clk 00:33:33]} {[%emt 00:00:49]} 24. Rc1
{[%clk 01:09:22]} {[%emt 00:05:46]} Rxc1+ {[%clk 00:19:09]} {[%emt 00:14:55]}
25. Nxc1 {[%clk 01:09:42]} {[%emt 00:00:09]} Rc7 {[%clk 00:19:33]} {[%emt
00:00:07]} 26. Rd8+ {[%clk 01:05:06]} {[%emt 00:05:05]} Bf8 {[%clk 00:19:57]}
{[%emt 00:00:06]} 27. Nd3 {[%clk 01:05:29]} {[%emt 00:00:06]} f6 {[%clk
00:16:58]} {[%emt 00:03:30]} 28. Nb4 {[%clk 01:05:40]} {[%emt 00:00:19]} Rf7
{[%clk 00:17:06]} {[%emt 00:00:22]} 29. Nd5 {[%clk 01:05:22]} {[%emt 00:00:48]}
f5 {[%clk 00:15:21]} {[%emt 00:02:16]} 30. Nc3 {[%clk 00:56:22]} {[%emt
00:09:29]} Kg7 {[%clk 00:14:27]} {[%emt 00:01:24]} 31. Kc2 {[%clk 00:56:25]}
{[%emt 00:00:27]} Bc5 {[%clk 00:12:26]} {[%emt 00:02:32]} 32. Rd5 {[%clk
00:55:23]} {[%emt 00:01:31]} Bd4 {[%clk 00:12:09]} {[%emt 00:00:47]} 33. exf5
{[%clk 00:55:37]} {[%emt 00:00:16]} gxf5 {[%clk 00:10:44]} {[%emt 00:01:55]} 34.
Ne2 {[%clk 00:55:10]} {[%emt 00:00:56]} Bb6 {[%clk 00:08:52]} {[%emt 00:02:23]}
35. Rxe5 {[%clk 00:54:47]} {[%emt 00:00:53]} Bc7 {[%clk 00:08:47]} {[%emt
00:00:36]} 36. Re3 {[%clk 00:55:08]} {[%emt 00:00:08]} Bxh2 {[%clk 00:04:24]}
{[%emt 00:04:53]} 37. f4 {[%clk 00:53:01]} {[%emt 00:02:37]} Rc7+ {[%clk
00:01:04]} {[%emt 00:03:50]} 38. Kd2 {[%clk 00:53:22]} {[%emt 00:00:08]} Rc4
{[%clk 00:00:54]} {[%emt 00:00:40]} 39. b3 {[%clk 00:53:08]} {[%emt 00:00:44]}
Rxf4 {[%clk 00:00:34]} {[%emt 00:00:51]} 40. Rh3 {[%clk 00:53:31]} {[%emt
00:00:06]} 1-0

[Event "SS Manhem Chess Week 2019 Goteborg Open"]
[Site "Molnlycke kulturhus, Biblioteksgatan 2, Molnlycke, Sweden"]
[Date "2019.08.17"]
[Round "6.10"]
[White "Johnson, Daniel"]
[Black "Troberg Eskola, Love"]
[Result "1-0"]
[TimeControl "15 minutes + 5 seconds per move from move one (Round 1 - 4) / 90 minutes + 30 seconds per move from move one (Round 5 - 8)"]
[WhiteFideId "1721283"]
[BlackFideId "1724185"]
[WhiteElo "2201"]
[BlackElo "2134"]

1. d4 {[%clk 01:24:41]} {[%emt 00:06:17]} f5 {[%clk 01:30:45]} {[%emt
00:00:16]} 2. Nc3 {[%clk 01:24:00]} {[%emt 00:01:11]} Nf6 {[%clk 01:30:25]}
{[%emt 00:00:49]} 3. Bg5 {[%clk 01:24:09]} {[%emt 00:00:21]} e6 {[%clk
01:30:40]} {[%emt 00:00:16]} 4. e4 {[%clk 01:23:58]} {[%emt 00:00:40]} fxe4
{[%clk 01:30:58]} {[%emt 00:00:12]} 5. Nxe4 {[%clk 01:24:22]} {[%emt 00:00:06]}
Be7 {[%clk 01:31:22]} {[%emt 00:00:06]} 6. Bxf6 {[%clk 01:23:26]} {[%emt
00:01:26]} Bxf6 {[%clk 01:31:46]} {[%emt 00:00:06]} 7. Qh5+ {[%clk 01:23:09]}
{[%emt 00:00:46]} g6 {[%clk 01:31:52]} {[%emt 00:00:25]} 8. Qh6 {[%clk
01:23:21]} {[%emt 00:00:18]} Bxd4 {[%clk 01:29:27]} {[%emt 00:02:55]} 9. O-O-O
{[%clk 01:23:18]} {[%emt 00:00:33]} Bf6 {[%clk 01:29:21]} {[%emt 00:00:35]} 10.
h4 {[%clk 01:19:54]} {[%emt 00:03:54]} Kf7 {[%clk 01:24:26]} {[%emt 00:05:26]}
11. Nf3 {[%clk 01:11:48]} {[%emt 00:08:36]} Bg7 {[%clk 01:18:13]} {[%emt
00:06:44]} 12. Qf4+ {[%clk 01:08:30]} {[%emt 00:03:48]} Ke8 {[%clk 01:14:16]}
{[%emt 00:04:26]} 13. Nfg5 {[%clk 01:01:05]} {[%emt 00:07:55]} Rf8 {[%clk
01:13:33]} {[%emt 00:01:13]} 14. Qg3 {[%clk 01:01:15]} {[%emt 00:00:20]} Bh6
{[%clk 01:05:01]} {[%emt 00:09:03]} 15. Kb1 {[%clk 01:00:57]} {[%emt 00:00:48]}
Bxg5 {[%clk 00:55:11]} {[%emt 00:10:20]} 16. hxg5 {[%clk 00:59:14]} {[%emt
00:02:12]} Rh8 {[%clk 00:54:08]} {[%emt 00:01:33]} 17. Qe5 {[%clk 00:52:02]}
{[%emt 00:07:42]} 1-0

[Event "SS Manhem Chess Week 2019 Goteborg Open"]
[Site "Molnlycke kulturhus, Biblioteksgatan 2, Molnlycke, Sweden"]
[Date "2019.08.17"]
[Round "6.11"]
[White "Pettersson, Anders"]
[Black "Welin, Mats"]
[Result "0-1"]
[TimeControl "15 minutes + 5 seconds per move from move one (Round 1 - 4) / 90 minutes + 30 seconds per move from move one (Round 5 - 8)"]
[BlackTitle "FM"]
[WhiteFideId "1715143"]
[BlackFideId "1705180"]
[WhiteElo "2104"]
[BlackElo "2310"]

1. d4 {[%clk 01:30:51]} {[%emt 00:00:09]} Nf6 {[%clk 01:30:39]} {[%emt
00:00:21]} 2. c4 {[%clk 01:31:13]} {[%emt 00:00:08]} e6 {[%clk 01:30:54]}
{[%emt 00:00:15]} 3. Nf3 {[%emt 00:00:33]} d5 {[%clk 01:30:50]} {[%emt
00:00:11]} 4. Bg5 {[%emt 00:00:36]} Bb4+ {[%emt 00:01:57]} 5. Nbd2 {[%clk
01:31:53]} {[%emt 00:00:31]} O-O {[%clk 01:28:53]} {[%emt 00:00:32]} 6. e3
{[%clk 01:32:17]} {[%emt 00:00:06]} b6 {[%clk 01:28:23]} {[%emt 00:01:00]} 7.
cxd5 {[%clk 01:30:54]} {[%emt 00:01:53]} exd5 {[%clk 01:27:53]} {[%emt
00:01:00]} 8. Bd3 {[%clk 01:31:16]} {[%emt 00:00:08]} Bd6 {[%clk 01:22:59]}
{[%emt 00:05:24]} 9. Qc2 {[%clk 01:25:47]} {[%emt 00:05:59]} h6 {[%clk
01:19:55]} {[%emt 00:03:33]} 10. h4 {[%clk 01:26:13]} {[%emt 00:00:05]} c5
{[%clk 01:16:56]} {[%emt 00:03:29]} 11. O-O-O {[%clk 01:21:53]} {[%emt
00:04:49]} Nc6 {[%clk 01:13:24]} {[%emt 00:04:02]} 12. dxc5 {[%clk 01:16:18]}
{[%emt 00:06:06]} bxc5 {[%clk 01:05:26]} {[%emt 00:08:29]} 13. Qc3 {[%clk
01:10:22]} {[%emt 00:06:25]} Nb4 {[%clk 00:56:20]} {[%emt 00:09:36]} 14. Bb1
{[%clk 01:09:16]} {[%emt 00:01:36]} Be6 {[%clk 00:55:55]} {[%emt 00:00:55]} 15.
Bxf6 {[%clk 01:03:23]} {[%emt 00:06:23]} gxf6 {[%clk 00:54:43]} {[%emt
00:01:42]} 16. Nb3 {[%clk 00:58:31]} {[%emt 00:05:22]} Rc8 {[%clk 00:47:31]}
{[%emt 00:07:42]} 17. Qd2 {[%clk 00:53:40]} {[%emt 00:05:20]} c4 {[%clk
00:28:04]} {[%emt 00:19:58]} 18. Nbd4 {[%clk 00:44:07]} {[%emt 00:10:02]} Qa5
{[%clk 00:26:15]} {[%emt 00:02:19]} 19. Qc3 {[%clk 00:42:11]} {[%emt 00:02:26]}
Nd3+ {[%clk 00:21:54]} {[%emt 00:04:51]} 20. Bxd3 {[%clk 00:36:17]} {[%emt
00:06:24]} cxd3 {[%clk 00:22:13]} {[%emt 00:00:11]} 21. Nc6 {[%clk 00:36:42]}
{[%emt 00:00:04]} Rxc6 {[%clk 00:20:51]} {[%emt 00:01:53]} 22. Qxc6 {[%clk
00:37:02]} {[%emt 00:00:09]} Rc8 {[%clk 00:21:18]} {[%emt 00:00:04]} 23. Qxc8+
{[%clk 00:37:02]} {[%emt 00:00:30]} Bxc8 {[%clk 00:21:41]} {[%emt 00:00:07]} 24.
Kb1 {[%clk 00:37:16]} {[%emt 00:00:15]} Be5 {[%clk 00:20:33]} {[%emt 00:01:38]}
25. Nd2 {[%clk 00:33:02]} {[%emt 00:04:44]} Qb4 {[%clk 00:18:31]} {[%emt
00:02:33]} 26. Nb3 {[%clk 00:33:23]} {[%emt 00:00:08]} Bf5 {[%clk 00:18:42]}
{[%emt 00:00:19]} 27. Rd2 {[%clk 00:31:59]} {[%emt 00:01:54]} a5 {[%clk
00:18:29]} {[%emt 00:00:44]} 28. f4 {[%clk 00:31:14]} {[%emt 00:01:14]} a4
{[%clk 00:17:17]} {[%emt 00:01:43]} 29. fxe5 {[%clk 00:31:38]} {[%emt
00:00:06]} axb3 {[%clk 00:17:42]} {[%emt 00:00:04]} 30. Rf2 {[%clk 00:31:50]}
{[%emt 00:00:17]} d2+ {[%clk 00:16:45]} {[%emt 00:01:28]} 31. Ka1 {[%clk
00:31:57]} {[%emt 00:00:24]} Bc2 {[%clk 00:16:56]} {[%emt 00:00:19]} 32. a3
{[%clk 00:32:05]} {[%emt 00:00:22]} Qxh4 {[%clk 00:16:31]} {[%emt 00:00:56]}
0-1